Cogmind - Beta 12 *** ADVENTURER MODE // 2023.03.13 @ 20:50:44 Player: soymachine Result: Destroyed by D-53 Grenadier with Mini Grenade Launcher Performance ------------- Evolutions (0) 0 Regions Visited (2) 400 Robots Destroyed (6) 30 Value Destroyed (225) 225 Prototype IDs (0) 0 Alien Tech Used (0) 0 Bonus (0) 0 TOTAL SCORE: 655 Bonus ------- None Cogmind --------- Core Integrity 0/250 Matter 300/300 Energy 100/100 System Corruption 1% Temperature Cool (0) Movement Walking (190) Ox1 Location -10/Mines Parts ------- > --- POWER (1) -------- (None) > --- PROPULSION (2) --- Aluminum Leg > --- UTILITY (2) ------ Large Storage Unit > --- WEAPON (2) ------- (None) > --- INVENTORY (15) --- Light Ion Engine Visual Processing Unit Medium Laser Beam Rifle Improved Light Cannon Improved Light Cannon Improved Light Cannon Rocket Launcher Heavy Explosive Trap Heavy Explosive Trap Peak State ------------ > --- POWER ------------ Improved Ion Engine > --- PROPULSION ------- Light Treads Light Treads > --- UTILITY ---------- Small Storage Unit Large Storage Unit > --- WEAPON ----------- Beam Rifle Improved Light Cannon > --- INVENTORY -------- Light Ion Engine Aluminum Leg Visual Processing Unit Medium Laser Beam Rifle Improved Light Cannon Improved Light Cannon Improved Light Cannon [Rating: 11] Favorites ----------- Power Improved Ion Engine Engine Improved Ion Engine Propulsion Light Treads Treads Light Treads Leg Aluminum Leg Utility Large Storage Unit Storage Large Storage Unit Weapon Improved Light Cannon Energy Gun Beam Rifle Ballistic Gun Light Assault Rifle Ballistic Cannon Improved Light Cannon Special Weapon Mining Laser Build | -11 -10 -10 ------- Run | Jun Mat Min Slots Evolved . | . . . Power . | . . . Propulsion . | . . . Utility . | . . . Weapon . | . . . Parts Attached 8 | . 6 2 Power 1 | . 1 . Engine 1 | . 1 . Core . | . . . Reactor . | . . . Propulsion 3 | . 2 1 Treads 2 | . 2 . Leg 1 | . . 1 Wheel . | . . . Hover . | . . . Flight . | . . . Utility 1 | . 1 . Device . | . . . Storage 1 | . 1 . Processor . | . . . Hackware . | . . . Protection . | . . . Artifact . | . . . Weapon 3 | . 2 1 Energy Gun 1 | . 1 . Energy Cannon . | . . . Ballistic Gun . | . . . Ballistic Cannon 1 | . 1 . Launcher . | . . . Special Weapon 1 | . . 1 Impact Weapon . | . . . Slashing Weapon . | . . . Piercing Weapon . | . . . Special Melee Weapon . | . . . Unidentified Prototypes . | . . . Parts Lost 4 | . . 4 Power 1 | . . 1 Propulsion 1 | . . 1 Utility . | . . . Weapon 2 | . . 2 Highest Loss Streak 3 | . . 3 To Critical Strikes 1 | . . 1 Average Slot Usage (%) 71 | . 85 60 Engine 10 | . 14 7 Treads 19 | . 26 14 Leg 4 | . 1 6 Storage 14 | . 14 14 Energy Gun 9 | . 14 6 Ballistic Cannon 10 | . 13 7 Special Weapon 1 | . . 2 Naked Turns . | . . . Heaviest Build 34 | 13 34 34 Greatest Support 40 | 20 40 40 Greatest Overweight (x) 2 | . . 2 Average Overweight (x) . | . . . Largest Inventory Capacity 15 | . 15 15 Average Capacity 12 | . 9 15 Most Carried 13 | . 8 13 Average Carried 9 | . 7 10 Final Capacity 15 | 8 15 15 Final Carried 10 | 6 8 10 Class Distribution -------------------- 100% | Mutant Dominant Class ---------------- Mutant | -10/Materials Mutant | -10/Mines Resources | -11 -10 -10 ----------- Run | Jun Mat Min Matter Collected 347 | 200 92 55 Remotely . | . . . Salvage Created 246 | . 217 29 Parts 11 | . 11 . Haulers Intercepted . | . . . Recyclers Shooed . | . . . Parts Field Recycled . | . . . Retrieved Matter . | . . . Parts Self-Destructed . | . . . Prevented . | . . . Kills | -11 -10 -10 ------- Run | Jun Mat Min Combat Hostiles Destroyed 10 | . 5 5 Guns 2 | . 2 . Cannons 7 | . 3 4 AOE 1 | . . 1 Classes Destroyed 3 | . 2 1 Watcher 1 | . 1 . Grunt 5 | . 5 . Assembled 5 | . . 5 Best Kill Streak 4 | . 4 4 Combat Bots Only 4 | . 4 4 Max Kills in Single Turn 1 | . 1 1 Gunslinging . | . . . Exploded 1 | . . 1 Melee . | . . . Uniques/NPCs Destroyed . | . . . Combat | -11 -10 -10 -------- Run | Jun Mat Min Damage Taken 827 | . 182 645 Core 251 | . . 251 Absorbed by Shields . | . . . Core Remaining (%) 100 | 100 . . Volleys Fired 25 | . 13 12 Largest 2 | . 2 2 Hottest 100 | . 95 100 Shots Fired 45 | . 26 19 Gun 20 | . 13 7 Cannon 21 | . 13 8 Launcher . | . . . Special 4 | . . 4 Kinetic 21 | . 13 8 Thermal 24 | . 13 11 Explosive . | . . . Electromagnetic . | . . . Robot Hit Streak 18 | . 9 18 Robot Miss Streak 1 | . 1 1 Penetration Max . | . . . Secondary Targets . | . . . Shots Hit Robots 35 | . 21 14 Core Hits 17 | . 11 6 Critical Kills . | . . . Critical Parts Destroyed . | . . . Critical Strikes . | . . . Melee Attacks . | . . . Impact . | . . . Slashing . | . . . Piercing . | . . . Sneak Attacks . | . . . Combat Hostiles . | . . . Follow-up Attacks . | . . . Damage Inflicted 607 | . 355 252 Guns 278 | . 174 104 Cannons 329 | . 181 148 Explosions . | . . . Melee . | . . . Ramming . | . . . Kinetic 329 | . 181 148 Thermal 278 | . 174 104 Explosive . | . . . Electromagnetic . | . . . Impact . | . . . Slashing . | . . . Piercing . | . . . Highest Corruption 1 | . 1 1 Average Corruption 1 | . 1 1 Corruption Purged . | . . . Corruption Blocked . | . . . Effects 10 | . 1 9 Message Errors 4 | . . 4 Energy Discharges 3 | . 1 2 Data Loss (minor) 3 | . . 3 Overload Shots . | . . . Overflow Damage 40 | . 4 36 Projectiles 40 | . 4 36 Explosions . | . . . Melee . | . . . Knockbacks 3 | . 1 2 Impact . | . . . Kinetic 3 | . 1 2 Secondary . | . . . Self-Inflicted Damage . | . . . Shots . | . . . Rammed . | . . . Targets Rammed . | . . . Kicked . | . . . Crushed . | . . . Highest Temperature 342 | . 342 312 Average Temperature 174 | . 177 169 Received Heat Transfer 234 | . 114 120 Effects 1 | . . 1 Short Circuit 1 | . . 1 Siege Activations . | . . . Robots Corrupted . | . . . Combat Hostiles . | . . . Parts Fried . | . . . Impact Corruptions 1 | . . 1 Robots Melted . | . . . Combat Hostiles . | . . . Parts Melted . | . . . Heat Transferred 703 | . 444 259 Parts Sabotaged . | . . . Parts Stolen . | . . . Parts Stripped . | . . . Power Chain Reactions . | . . . Missiles Intercepted . | . . . Alert | -11 -10 -10 ------- Run | Jun Mat Min Peak Influence 184 | . 184 18 Initial . | . . . Average 21 | . 38 6 Maximum Alert Level . | . . . Low Security (%) 100 | . 100 100 Level 1 . | . . . Level 2 . | . . . Level 3 . | . . . Level 4 . | . . . Level 5 . | . . . High Security . | . . . Max Security . | . . . Squads Dispatched . | . . . Investigation . | . . . Extermination . | . . . Reinforcement . | . . . Assault . | . . . Garrison . | . . . Intercept . | . . . Searches Triggered . | . . . Construction Impeded . | . . . Haulers Reinforced . | . . . Active Scanning Responses . | . . . Cargo Convoy Interrupts . | . . . Stealth | -11 -10 -10 --------- Run | Jun Mat Min Distress Signals . | . . . Communications Jammed . | . . . Distress Signals . | . . . Times Spotted 21 | . 7 14 Peak Tracking Total 7 | . 3 7 Tactical Retreats 2 | . . 2 Traps | -11 -10 -10 ------- Run | Jun Mat Min Traps Triggered 4 | . 4 . Indirectly . | . . . Trap Hack Attempts . | . . . Triggered . | . . . Disarmed . | . . . Reprogrammed . | . . . Reused 2 | . . 2 Traps Extracted . | . . . Installed 2 | . . 2 Triggered . | . . . Most Traps Carried 4 | . . 4 Machines | -11 -10 -10 ---------- Run | Jun Mat Min Machines Disabled . | . . . Max in Single Turn . | . . . Machines Repaired . | . . . Machines Sabotaged . | . . . Overloaded Fab Kills . | . . . Hacking | -11 -10 -10 --------- Run | Jun Mat Min Machines Accessed 2 | . 2 . Terminals 1 | . 1 . Fabricators . | . . . Repair Stations . | . . . Recycling Units 1 | . 1 . Scanalyzers . | . . . Garrison Access . | . . . Total Hacks 3 | . 3 . Successful 3 | . 3 . Failed . | . . . Catastrophic . | . . . Database Lockouts . | . . . Manual . | . . . Terminals 2 | . 2 . Fabricators . | . . . Repair Stations . | . . . Recycling Units 1 | . 1 . Scanalyzers . | . . . Garrison Access . | . . . Terminal Hacks 2 | . 2 . Record 1 | . 1 . Alert Level 1 | . 1 . Fabricator Hacks . | . . . Repair Station Hacks . | . . . Recycling Unit Hacks 1 | . 1 . Retrieve Components 1 | . 1 . Scanalyzer . | . . . Garrison Access Hacks . | . . . Unauthorized Hacks . | . . . Terminals . | . . . Fabricators . | . . . Repair Stations . | . . . Recycling Units . | . . . Scanalyzers . | . . . Garrison Access . | . . . Data Cores Recovered . | . . . Used . | . . . Hacking Detections . | . . . Full Trace Events . | . . . Feedback Events . | . . . Feedback Blocked . | . . . Robot Schematics Acquired . | . . . Robots Built . | . . . Authchips . | . . . Time . | . . . Total Robot Build Rating . | . . . Part Schematics Acquired . | . . . Parts Built . | . . . Authchips . | . . . Time . | . . . Total Part Build Rating . | . . . Parts Repaired . | . . . Time . | . . . Parts Recycled . | . . . Recycled Matter . | . . . Retrieved Matter . | . . . Retrieved Components 2 | . 2 . Parts Scanalyzed . | . . . Part Schematics Acquired . | . . . Parts Damaged . | . . . Bothacking | -11 -10 -10 ------------ Run | Jun Mat Min Used RIF Installer . | . . . Robots Hacked . | . . . Non-combat . | . . . Combat . | . . . Robot Hacks Applied . | . . . Relay Couplers Released . | . . . Fabnet Peak Effective % . | . . . Robots Rewired . | . . . Allies Hacked . | . . . Hacks Repelled . | . . . Allies | -11 -10 -10 -------- Run | Jun Mat Min Total Allies . | . . . Largest Group . | . . . Highest-Rated Group . | . . . Highest-Rated Ally . | . . . Total Orders . | . . . Ally Attacks . | . . . Total Damage . | . . . Kills . | . . . Allies Corrupted . | . . . Allies Melted . | . . . Intel | -11 -10 -10 ------- Run | Jun Mat Min Robot Analysis Total . | . . . Derelict Logs Recovered 1 | . . 1 Drone Launches . | . . . Drone Recoveries . | . . . Exploration | -11 -10 -10 ------------- Run | Jun Mat Min Turns Passed 1452 | . 656 796 Spaces Moved 746 | 1 363 382 Core . | . . . Treads 554 | . 336 218 Legs 192 | 1 27 164 Wheels . | . . . Hover . | . . . Flight . | . . . Fastest Speed 120 | 120 120 160 Average Speed 171 | 120 157 185 Slowest Speed 260 | 120 160 260 Overloaded Moves . | . . . Propulsion Burnouts . | . . . Robots Hopped . | . . . Cave-ins Triggered . | . . . Exploration Rate (%) 46 | 2 60 76 Regions Visited 2 Branch Regions 1 Pre-discovered Areas 1 | . . 1 Known Exits Taken . | . . . Unknown Exits Taken 2 | 1 1 . Scrap Searched . | . . . Spaces Dug 4 | . . 4 Terrain Destroyed 4 | . . 4 Melee . | . . . Projectile 4 | . . 4 AOE . | . . . Terrain Rammed . | . . . Walls Destroyed . | . . . Machines Disabled . | . . . Actions | -11 -10 -10 --------- Run | Jun Mat Min Total 870 | . 425 445 Wait 68 | . 31 37 Move 744 | . 362 382 Hop . | . . . Pick Up 12 | . 6 6 Fast Attach 2 | . 2 . Attach 4 | . 2 2 Detach . | . . . Swap 2 | . 2 . Drop 11 | . 7 4 Fire 25 | . 13 12 Melee . | . . . Ram . | . . . Kick . | . . . Crush . | . . . Escape Stasis . | . . . Rewire . | . . . Trap 2 | . . 2 Miscellaneous . | . . . Route ------- -11/Junkyard -10/Materials (discovered 4 exits: [*Mat x2] / [*Min x2]) -10/Mines History --------- Turn | Location | Event 1 | -11/Junkyard | Discovered new exit (range 0) 1 | -11/Junkyard | Entered Materials 276 | -10/Materials | Discovered new exit (range 4) 310 | -10/Materials | Build established: Mutant 373 | -10/Materials | Discovered new exit (range 8) 474 | -10/Materials | Discovered new exit (range 7) 551 | -10/Materials | Discovered new exit (range 10) 657 | -10/Materials | Entered Mines 658 | -10/Mines | Met a Derelict bent on vengeance 664 | -10/Mines | Received a Rocket Launcher from a helpful Derelict 821 | -10/Mines | Found a hidden stash of uninstalled traps 991 | -10/Mines | Assembled infested the area 996 | -10/Mines | Assisted by a Guerilla fighting off Assembled 1080 | -10/Mines | Core integrity fell below 50% 1093 | -10/Mines | Core integrity fell below 20% 1127 | -10/Mines | Lost 3 parts (1p1n1w) 1270 | -10/Mines | Learned location of Zion (-6) 1453 | -10/Mines | Destroyed by D-53 Grenadier with Mini Grenade Launcher Last Messages --------------- 01074_ as-73883 triggered Heavy Explosive Trap. 01074_ An explosion rips through the floor. 01074_ Imp. Light Cannon destroyed. 01074_ as-21567 destroyed. 01074_ as-37649 destroyed. 01077_ Dropped Lgt. Treads. 01077_ Dropped Heavy Explosive Trap. 01080_ Installed Heavy Explosive Trap. 01082_ The unstable cave ceiling collapses. 01096_ Imp. Ion Engine destroyed. 01098_ 2 BI,9LTL#YL|/C>NFS 01266_ Acquired 14 matter. 01270_ Acquired derelict log, extracted data. World map updated: -6/Zion. 01282_ System corrupted: Component data lost. 01283_ Acquired Unknown Special Weapon. 01284_ Identified Mining Laser. 01362_ Acquired 3 matter. 01423_ Acquired 11 matter. 01453_ Mining Laser destroyed. Map ----- +----------------------------------------------------+ | ####### %# ??????????????????# ????# #?? | | %[ % #???????????????????# ????# #?? | | ##### # ##????????????????????## #????# #?? | | #???# ## #?????????????????????### ####### #?? | | #???# ##% ##??????????????????????# ## #?? | | #???# ##?????????????????????# #### ## #?? | | #???##### !%# ##########?????????# #??# ## #?? | | ??????### * %= = #????????## #### #?? | | ###???????## ######### #???????## ##### #?? | | ???????????## ##????????# #??????## "#?# #?? | | ????????????? ##?????????# ######## " " "#?# #?? | | ????????????? #??????????# "" ###?# ?? | | ????????????? #??????????##"####### """ #######?? | | ????????????? #???????????# ##???## """ #???? | | ????????????? #?###???????#"###??# #???? | | ????????????# ### #?????## #??# ### %#???? | | ????????????# #????# ##?## "#?? ???? | | ????????????# #???# #??## "##??? ??? | | ?????????????# ##?## ##### ##?????#"%?? | | ?????????????## d #??#* #???????? *? | | ?????????????# d #### ! #?????????*? | | ????????????## ##= ##### ##??????????? | | ???????????## ##???# #???????????? | | ???????????# #????####???????????? | | ???????????# ##???????????????????? | | ???????????# @ ##????????????????????? | | ???????????# #### #?????????????????????? | | ?????????????? ?????# #?????????????????????? | | ????????????????????## ##?????????????????????? | | ?????????????????????######??????????????????????? | | ?????????????????????????????????????????????????? | | ?????????????????????????????????????????????????? | | | | | | | | | | | | | | | | | | | | | | | | | | | | | | | | | | | | | +----------------------------------------------------+ Best States ------------- Heat Dissipation 25 Energy Generation 12 Energy Capacity 265 Matter Stores 300 Matter Capacity 300 Sight Range 16 Terrain Scan Density 10 Resistance: KI 20 Resistance: TH 20 Resistance: EX 20 Resistance: EM 20 Resistance: I 20 Resistance: S 20 Resistance: P 20 Evasion (%) 55 Recoil Reduction 2 Offensive Hacking 10 Item Schematics ----------------- None Robot Schematics ------------------ None Fabricated ------------ Nothing Alien Tech Used ----------------- None Achievements -------------- None Challenges ------------ None Game ------ Seed FireArmoredEdition Manual? 0 Play Time 00:12:39 Cumulative 341.7 hours Start 2023.03.13 @ 20:42:12 End 2023.03.13 @ 20:50:44 Sessions 1 Manual Loads 0 Difficulty Adventurer Special Mode None Game No. 273 Rogue 195 Adventurer 78 Explorer 0 Win Type - Total 2 Types 1/0/0/1/0/0/0/0/0 Lore% 49 Gallery% 71 Achievement% 48 Wizard Run 0 Options --------- ASCII 0 Keyboard 0 Movement Mouse Keybinds 0 Fullscreen 1 Font 18/SmallcapsGlow Map View 76x50 Tactical HUD 1 Map Filters NONE Filters NONE Steam 1 RUN: 57ff2f0c-53be-47dd-adcf-13561b761d7a